[Event "Saint Louis Norm Congress-IM 2022"]
[Site "Saint Louis"]
[Date "2022.05.19"]
[Round "1.1"]
[White "Tokhirjonova, Gulrukhbegim"]
[Black "Posthuma, Joshua"]
[Result "1/2-1/2"]
[ECO "B30"]
[WhiteElo "2337"]
[BlackElo "2405"]
[Annotator "TA"]
[PlyCount "113"]
[EventDate "2022.05.20"]
[EventType "tourn"]
[EventCountry "USA"]
[SourceTitle "playchess.com"]
[Source "ChessBase"]
[SourceQuality "1"]
[TimeControl "5400+30"]

{[%evp 9,113,42,43,0,1,23,12,8,2,0,0,0,7,4,0,0,-4,-24,-28,-23,-34,-30,-24,-33,-20,-56,-34,-31,-35,-112,-58,-221,-217,-206,-25,-48,-19,-312,-76,-80,-77,-79,-76,-80,-80,-79,-70,-155,-152,-166,-141,-144,-163,-160,-138,-138,-137,-137,-135,-127,-93,-91,-27,-56,0,0,0,0,0,0,0,0,0,0,0,0,0,0,0,0,0,0,0,0,0,0,0,0,0,0,0,0,0,0,0,0,0,0,0,0,0,0,0,0,0,0]} 1. e4 {[%emt 0:00:30]} c5 {[%emt 0:00:47]} 2. Nf3 {[%emt 0:00:13]} Nc6 {[%emt 0:00:10]} 3. Bb5 {[%emt 0:00:33]} e5 {[%emt 0:00:25]} 4. O-O {[%emt 0:01:17]} Bd6 {[%emt 0:00:26]} 5. c3 {[%emt 0:01:47]} a6 {[%emt 0:00:42]} 6. Bxc6 {[%emt 0:02:10] B30: Sicilian: 2...Nc6 3 Bb5, lines without ...g6.} dxc6 {[%emt 0:00:10]} 7. d4 {[%emt 0:01:39]} exd4 {[%emt 0:00:19]} 8. cxd4 {[%emt 0:00:44]} Bg4 {[%emt 0:00:31]} 9. dxc5 {[%emt 0:03:31]} Bxc5 {[%emt 0:01:00]} 10. Qc2 {[%emt 0:01:15]} Qe7 {[%emt 0:04:09] Inhibits Ne5.} 11. Nbd2 {[%emt 0:01:52]} Nf6 {[%emt 0:09:28]} 12. e5 {[%emt 0:08:19]} Nd7 {[%emt 0:05:13] [#]} 13. Qb3 $146 {[%emt 0:05:38]} ({Predecessor:} 13. Re1 O-O 14. h3 Bh5 15. Ne4 h6 16. Nxc5 Qxc5 17. Qf5 Bxf3 18. Qxd7 Qd5 19. Qxd5 Bxd5 {½-½ (19) Sirotkin,V (2301)-Kireev,V (2162) ICCF email 2012}) 13... O-O-O {[%emt 0:02:39]} 14. Re1 {[%emt 0:13:07]} Rhe8 {[%emt 0:25:39]} 15. h3 $1 {[%emt 0:03:21]} Be6 {[%emt 0:06:45]} 16. Qc2 {[%emt 0:01:37]} Bd5 {[%emt 0:04:43]} 17. a3 {[%emt 0:01:47]} f6 {[%emt 0:13:19]} 18. b4 {[%emt 0:04:56]} Bb6 {[%emt 0:00:43][%cal Rf6e5]} 19. Bb2 {[%emt 0:04:23]} (19. exf6 $1 $15 Qf7 20. Bb2 gxf6 21. Rxe8 Rxe8 22. Re1) 19... fxe5 {[%emt 0:00:48]} (19... Nxe5 $17 20. Bxe5 fxe5 21. Rxe5 Qf6) 20. Nxe5 $2 {[%emt 0:04:58]} (20. Qxh7 $15 e4 21. Qf5) 20... Nxe5 $19 {[%emt 0:04:45]} ({Worse is} 20... Bxf2+ 21. Kxf2 Qh4+ 22. Kg1 Nxe5 23. Rxe5 $17) 21. Rxe5 {[%emt 0:01:09]} Qh4 {[%emt 0:04:52]} (21... Qf7 $19 22. Nf1 Rxe5 23. Bxe5 Bxg2 $1 {[%mdl 512]}) 22. Nf3 $1 $11 {[%emt 0:06:47]} ({Much worse is} 22. Qf5+ Kb8 23. Rxe8 Rxe8 24. Be5+ Ka7 $17) 22... Bxf3 $40 {[%emt 0:03:18][%mdl 128] Black attacks. A strong pair of Bishops.} (22... Be4 $5 {[%cal Re4c2]} 23. Nxh4 Bxc2 $15) 23. Qf5+ {[%emt 0:00:11][%mdl 8192] [#]} (23. Rxe8 $11 Rxe8 24. Qf5+ Kb8 25. Qxf3) 23... Kb8 $2 {[%emt 0:00:12]} (23... Kc7 $1 $19 24. Qxf3 Rf8) 24. Qxf3 $17 {[%emt 0:00:32] [#]} Rf8 {[%emt 0:01:42]} 25. Rf5 {[%emt 0:00:41]} Rxf5 {[%emt 0:00:38]} 26. Qxf5 {[%emt 0:00:14] [#]} Qxf2+ $1 {[%emt 0:01:49]} 27. Qxf2 {[%emt 0:00:13]} Bxf2+ {[%emt 0:00:05][%mdl 4096] Endgame KRB-KRB} 28. Kf1 {[%emt 0:01:08]} ({White should try} 28. Kxf2 $15 Rd2+ 29. Kf1 Rxb2 30. Re1) 28... Bd4 {[%emt 0:00:45]} 29. Bxd4 {[%emt 0:00:15]} Rxd4 {[%emt 0:00:07] KR-KR} 30. Ke2 {[%emt 0:00:05]} a5 {[%emt 0:02:12]} 31. Ke3 {[%emt 0:02:24]} Rd5 {[%emt 0:00:44]} 32. Rf1 {[%emt 0:01:06]} axb4 {[%emt 0:01:31]} 33. axb4 {[%emt 0:00:01]} Kc7 {[%emt 0:00:13]} 34. Rf4 {[%emt 0:02:41]} b5 {[%emt 0:02:31]} 35. g4 {[%emt 0:00:32]} g6 {[%emt 0:03:39]} (35... Rd6 $17) 36. h4 $11 {[%emt 0:00:51]} c5 {[%emt 0:00:44]} (36... Kb6 $15) 37. bxc5 {[%emt 0:01:39] The position is equal.} Kc6 {[%emt 0:00:11] White must now prevent ...Rd7.} 38. Rf7 {[%emt 0:04:18]} b4 {[%emt 0:00:46]} 39. Rxh7 {[%emt 0:02:17]} b3 {[%emt 0:00:11]} 40. Rh8 {[%emt 0:00:25]} Kxc5 {[%emt 0:00:34]} 41. Rc8+ {[%emt 0:06:44]} Kb4 {[%emt 0:00:15]} 42. Rb8+ $1 {[%emt 0:00:05]} Kc3 {[%emt 0:00:35] Hoping for ...Rc5.} 43. Rc8+ {[%emt 0:00:50]} Kb2 {[%emt 0:00:37] Strongly threatening ...Re5+.} (43... Kb4 $5 44. Rb8+ Kc3 45. Rc8+ Kb4 $11) 44. Rc6 {[%emt 0:01:57]} g5 {[%emt 0:00:44]} 45. hxg5 {[%emt 0:07:21]} Rxg5 {[%emt 0:00:22]} 46. Kf4 {[%emt 0:00:11]} Ra5 {[%emt 0:00:43]} 47. g5 {[%emt 0:01:41]} Ka3 {[%emt 0:00:25]} 48. Rb6 {[%emt 0:00:24]} Ra4+ {[%emt 0:00:24]} 49. Ke5 {[%emt 0:00:12]} b2 {[%emt 0:00:24]} 50. g6 {[%emt 0:00:44]} Rg4 {[%emt 0:00:48]} 51. Kf6 {[%emt 0:00:15]} Rb4 {[%emt 0:00:10]} 52. Rxb4 {[%emt 0:00:07]} Kxb4 {[%emt 0:00:04]} 53. g7 {[%emt 0:00:06]} b1=Q {[%emt 0:00:06] ( -> ...Qb3)} 54. g8=Q {[%emt 0:00:07] Qb8+ would kill now.} Qb2+ {[%emt 0:00:06]} 55. Kf7 {[%emt 0:00:06]} Qb3+ {[%emt 0:00:03]} 56. Kg7 {[%emt 0:00:04]} Qxg8+ {[%emt 0:00:03]} 57. Kxg8 {[%emt 0:00:07] And White is the lucky defender.  Weighted Error Value: White=0.24 (precise) /Black=0.20 (precise)} 1/2-1/2

[Event "Saint Louis Norm Congress-IM 2022"]
[Site "Saint Louis"]
[Date "2022.05.19"]
[Round "1.2"]
[White "Lee, Alice"]
[Black "Antova, Gabriela"]
[Result "0-1"]
[ECO "D36"]
[WhiteElo "2344"]
[BlackElo "2293"]
[Annotator "TA"]
[PlyCount "162"]
[EventDate "2022.05.20"]
[EventType "tourn"]
[EventCountry "USA"]
[SourceTitle "playchess.com"]
[Source "ChessBase"]
[SourceQuality "1"]
[TimeControl "5400+30"]

{[%evp 24,162,0,0,8,0,0,-1,0,0,0,0,0,0,0,0,-14,-1,-1,0,30,27,24,28,24,22,26,0,48,47,35,34,61,45,68,48,44,21,36,23,39,39,59,29,43,37,87,91,82,0,45,0,33,12,50,45,42,0,0,0,25,27,27,30,58,16,88,12,98,18,25,0,95,0,0,0,0,0,0,-9,0,0,0,0,16,15,34,48,46,38,70,8,15,0,0,0,0,0,0,0,0,0,0,0,0,0,0,0,0,0,0,0,0,0,0,0,0,0,0,0,8,0,8,8,8,8,38,38,38,38,39,38,38,38,38,8,13,13,13,13,38]} 1. d4 {[%emt 0:00:03]} d5 {[%emt 0:02:34]} 2. c4 {[%emt 0:00:09]} e6 {[%emt 0:00:07]} 3. Nc3 {[%emt 0:00:15]} Nf6 {[%emt 0:00:11]} 4. cxd5 {[%emt 0:00:14]} exd5 {[%emt 0:00:12]} 5. Bg5 {[%emt 0:00:18]} c6 {[%emt 0:00:20]} 6. e3 {[%emt 0:00:09]} Be7 {[%emt 0:00:17]} 7. Bd3 {[%emt 0:00:12]} Nbd7 {[%emt 0:00:56][%cal Bb8d7,Bd7f8,Bf8e6][%mdl 32]} 8. Nge2 {[%emt 0:00:25]} O-O {[%emt 0:00:37]} 9. Qc2 {[%emt 0:02:27]} Re8 {[%emt 0:00:18]} 10. O-O {[%emt 0:00:30]} Nf8 {[%emt 0:00:49]} 11. Rae1 {[%emt 0:01:44]} g6 {[%emt 0:01:57]} 12. f3 {[%emt 0:04:11]} Ne6 {[%emt 0:00:48]} 13. Bh4 {[%emt 0:00:10]} b5 $1 {[%emt 0:00:19][%mdl 4] is now more promising than 13...Ng7. D36: Queen's Gambit Declined: Exchange Variation: Main line (5 Bg5 c6 6 Qc2).} 14. Bf2 {[%emt 0:11:48]} Bb7 {[%emt 0:10:29]} 15. h3 {[%emt 0:07:29]} Rc8 {[%emt 0:02:17] [#]} 16. Qd2 $146 {[%emt 0:02:13]} ({Predecessor:} 16. e4 a6 17. e5 Nh5 18. Qd2 c5 19. f4 cxd4 20. Bxd4 b4 21. Na4 Nxd4 22. Nxd4 {0-1 (39) Dominguez Laguna,E (1877)-Alvarado Diaz,A (2396) Llinars del Valles 2021}) 16... b4 {[%emt 0:04:52]} 17. Na4 {[%emt 0:00:40]} Qa5 {[%emt 0:00:50]} 18. b3 {[%emt 0:03:46][%cal Oa2a3]} c5 {[%emt 0:03:16]} 19. dxc5 {[%emt 0:00:19]} Nxc5 {[%emt 0:00:45]} 20. Nxc5 {[%emt 0:01:03]} Bxc5 {[%emt 0:00:11]} 21. Nd4 {[%emt 0:04:29]} Ba6 {[%emt 0:07:28]} 22. Bxa6 {[%emt 0:06:46]} Qxa6 {[%emt 0:00:14]} 23. Rc1 {[%emt 0:01:36]} Bf8 {[%emt 0:16:18]} 24. Rxc8 {[%emt 0:08:01]} Rxc8 {[%emt 0:00:27]} 25. Rc1 {[%emt 0:01:29]} Nd7 {[%emt 0:12:14]} (25... Rxc1+ $11 {might be stronger.} 26. Qxc1 Qxa2) 26. Rxc8 $14 {[%emt 0:02:34]} Qxc8 {[%emt 0:00:09]} 27. Ne2 {[%emt 0:01:44]} Nb6 {[%emt 0:04:59]} 28. Bg3 {[%emt 0:06:09]} Qf5 {[%emt 0:10:44]} 29. Nd4 {[%emt 0:01:32]} Qc8 {[%emt 0:06:14]} 30. Kh2 {[%emt 0:12:44]} h5 {[%emt 0:05:38]} 31. Ne2 {[%emt 0:01:57]} (31. Qd3 {is more complex.} Bh6 32. Bf2 Qc7+ 33. Kg1) 31... Qc5 {[%emt 0:01:47]} 32. Kg1 {[%emt 0:02:51]} Bg7 {[%emt 0:01:03] Against Be5} 33. Bf2 {[%emt 0:01:29]} Qe7 {[%emt 0:03:12]} 34. Qd3 {[%emt 0:04:30]} Qe5 {[%emt 0:01:34]} (34... Qc5 $14) 35. Nd4 $16 {[%emt 0:00:18]} Qc7 {[%emt 0:00:19]} 36. Ne2 {[%emt 0:01:36]} Qe5 {[%emt 0:01:17]} 37. Qc2 {[%emt 0:02:28]} Bh6 {[%emt 0:00:15]} 38. f4 {[%emt 0:01:50]} Qa1+ {[%emt 0:00:32]} (38... Qe4 $5 {[%cal Re4c2]} 39. Nd4 Bf8 $11) 39. Kh2 {[%emt 0:00:06]} Bg7 {[%emt 0:00:25]} 40. e4 {[%emt 0:03:05]} (40. Bh4 $5 {[%cal Rc2c6]}) 40... dxe4 {[%emt 0:02:01]} 41. Qxe4 {[%emt 0:00:15] [#] aiming for Qe8+.} Nd7 {[%emt 0:01:08]} 42. Qa8+ {[%emt 0:01:42]} Nf8 {[%emt 0:00:50]} 43. Qxa7 {[%emt 0:00:22]} Qb2 {[%emt 0:00:31]} 44. Ng3 {[%emt 0:00:21]} Ne6 {[%emt 0:00:31]} (44... Qd2 $11) 45. Be3 {[%emt 0:02:46]} (45. Ne4 $16) 45... Nd4 {[%emt 0:00:30] [#]} (45... Qc3 $11) 46. Qa8+ {[%emt 0:01:29]} (46. Ne4 $1 $16 {[%cal Re4g5] Hoping for Ng5.} Ne6 47. Nd6) 46... Kh7 $11 {[%emt 0:00:08]} 47. Bxd4 {[%emt 0:00:49]} Bxd4 {[%emt 0:00:29][%mdl 4096] Endgame KQB-KQN} (47... Qxd4 $11 {keeps the balance.} 48. Ne2 Qe3) 48. Qd5 {[%emt 0:00:38]} ({Better is} 48. Qf8 $16 {And now Ne4 would win.} f5 49. Qxb4) 48... Kg8 {[%emt 0:00:49]} 49. Ne2 {[%emt 0:00:40]} Bf6 {[%emt 0:00:18] Against Qd8+} 50. Qa8+ {[%emt 0:00:28]} Kg7 {[%emt 0:00:16]} 51. Qa6 {[%emt 0:00:11]} h4 {[%emt 0:00:29]} 52. Ng1 {[%emt 0:00:45]} Qf2 {[%emt 0:00:34]} 53. Qc4 {[%emt 0:00:07]} Qxa2 {[%emt 0:00:59]} 54. Qxb4 {[%emt 0:00:13]} Qf2 {[%emt 0:00:26]} 55. Nf3 {[%emt 0:00:08]} Qe3 {[%emt 0:00:29]} 56. Qc4 {[%emt 0:00:38]} Bd8 {[%emt 0:00:36]} 57. b4 {[%emt 0:01:29]} ({White should try} 57. Qd4+ $1 $14 Qxd4 58. Nxd4) 57... Bb6 {[%emt 0:00:15]} 58. f5 {[%emt 0:00:26]} g5 {[%emt 0:00:43]} 59. b5 {[%emt 0:00:34]} Ba7 {[%emt 0:00:23]} 60. Kh1 {[%emt 0:00:32]} Bc5 {[%emt 0:00:31]} 61. Qc2 {[%emt 0:00:32]} Kf6 {[%emt 0:00:34]} 62. Qb1 {[%emt 0:00:20]} Bb6 {[%emt 0:00:15]} 63. Nh2 {[%emt 0:00:20] Intending Ng4+ and mate.} Ke7 {[%emt 0:00:41] Active counter play!} 64. Ng4 {[%emt 0:00:22]} Qd4 {[%emt 0:00:27]} 65. f6+ {[%emt 0:00:35]} Kd6 {[%emt 0:00:35]} 66. Qc1 {[%emt 0:00:49][%csl Gb5][%cal Rc1c6]} Bc5 {[%emt 0:00:19]} 67. Qe1 {[%emt 0:00:30] Strongly threatening Qe7+.} Kc7 {[%emt 0:00:43]} 68. Ne5 {[%emt 0:00:32]} Kb6 {[%emt 0:00:33]} 69. Nxf7 {[%emt 0:00:33] Ne5 is the strong threat.} Qxf6 {[%emt 0:00:08]} 70. Ne5 {[%emt 0:00:07] Nd7+ would kill now.} Qf5 {[%emt 0:00:50] Inhibits Nd7+.} 71. Nf3 {[%emt 0:00:44]} Kxb5 {[%emt 0:00:32]} 72. Qe2+ {[%emt 0:00:41]} Kb6 {[%emt 0:00:18]} 73. Qb2+ {[%emt 0:00:08]} Kc6 {[%emt 0:00:29]} 74. Qc1 {[%emt 0:00:15] Threatening mate with Nd4+.} Kd7 {[%emt 0:00:43]} 75. Nxg5 {[%emt 0:00:15]} Bd6 {[%emt 0:00:26]} 76. Nf3 {[%emt 0:00:19]} Qe4 {[%emt 0:00:15]} 77. Qa1 {[%emt 0:01:15]} Bg3 {[%emt 0:00:40]} 78. Qd1+ {[%emt 0:00:46]} Kc8 {[%emt 0:00:26]} 79. Ng1 {[%emt 0:00:27]} Kc7 {[%emt 0:00:44] The position is equal.} 80. Ne2 {[%emt 0:00:24]} Be5 {[%emt 0:00:13]} 81. Qf1 {[%emt 0:00:33]} Kc6 {[%emt 0:00:42][%mdl 32768] Weighted Error Value: White=0.19 (very precise) /Black=0.19 (very precise) . Sensor Board Error (Ke4/e5)?} 0-1

[Event "Saint Louis Norm Congress-IM 2022"]
[Site "Saint Louis"]
[Date "2022.05.19"]
[Round "1.3"]
[White "Yu, Jennifer"]
[Black "Ezra Paul Chambers"]
[Result "1/2-1/2"]
[ECO "A06"]
[WhiteElo "2257"]
[BlackElo "2232"]
[Annotator "TA"]
[PlyCount "115"]
[EventDate "2022.05.20"]
[EventType "tourn"]
[EventCountry "USA"]
[SourceTitle "playchess.com"]
[Source "ChessBase"]
[SourceQuality "1"]
[TimeControl "5400+30"]

{[%evp 10,115,19,2,12,4,31,23,31,14,17,49,45,52,50,36,57,22,60,69,96,45,72,25,25,-26,-41,-34,0,0,0,1,7,0,44,42,200,78,75,0,0,-251,85,96,403,410,417,419,408,404,349,239,632,297,948,354,352,317,340,317,338,235,224,14,14,14,206,14,14,14,14,14,14,14,14,8,8,8,115,111,137,44,63,8,8,8,36,8,8,8,8,8,8,8,8,8,8,8,8,8,8,8,8,8,8,8,8,8]} 1. c4 {[%emt 0:00:04]} c6 {[%emt 0:00:08]} 2. Nf3 {[%emt 0:00:20]} d5 {[%emt 0:00:15]} 3. e3 {[%emt 0:00:08]} Nf6 {[%emt 0:00:30]} 4. b3 {[%emt 0:00:25]} e6 {[%emt 0:01:24]} 5. Bb2 {[%emt 0:00:25]} Nbd7 {[%emt 0:01:10]} 6. Be2 {[%emt 0:03:28]} Bd6 {[%emt 0:01:22] A06: Réti Opening: 1 Nf3 d5.} 7. d4 {[%emt 0:00:16]} Ne4 {[%emt 0:07:24]} 8. O-O {[%emt 0:05:33]} O-O {[%emt 0:02:35] White has an edge.} 9. Ne5 {[%emt 0:03:39]} Qc7 {[%emt 0:06:31][%cal Rd7e5]} 10. f3 {[%emt 0:03:41] [#]} Nef6 $146 {[%emt 0:02:40][%cal Rd7e5]} ({Predecessor:} 10... Bxe5 11. dxe5 Nec5 12. b4 Na6 13. cxd5 Nxb4 14. d6 Qb6 15. Qd2 Nd5 16. Bd4 c5 {0-1 (53) Polushkina,S (2080)-Romanova,E Kiev 1997}) 11. f4 {[%emt 0:00:43]} b6 {[%emt 0:06:33]} 12. Nd2 {[%emt 0:05:17]} Bb7 {[%emt 0:02:34]} 13. Rc1 {[%emt 0:03:50]} Rac8 {[%emt 0:08:54]} 14. Bd3 {[%emt 0:05:18]} c5 {[%emt 0:08:51]} 15. cxd5 {[%emt 0:09:22] White is more active.} ({White should try} 15. Nxd7 $1 $16 Qxd7 16. dxc5) 15... Nxd5 $14 {[%emt 0:04:06]} 16. Qe2 {[%emt 0:01:24]} (16. Qh5 $16 {[%csl Gd3][%cal Rh5h7]} N7f6 17. Qh3) 16... f5 {[%emt 0:11:48]} 17. e4 {[%emt 0:29:04]} (17. Bc4 $142) 17... fxe4 $1 $11 {[%emt 0:03:01]} 18. Qxe4 {[%emt 0:00:22][%csl Gd3][%cal Re4h7]} (18. Nxe4 Nxf4 19. Rxf4 Rxf4 $17) 18... N7f6 {[%emt 0:01:33]} (18... Rf5 $5 {[%cal Rd5f4]} 19. Qe1 Rxf4 $11) 19. Qe2 {[%emt 0:00:14]} Qe7 {[%emt 0:02:28]} 20. g3 {[%emt 0:05:53]} Rc7 {[%emt 0:07:33]} 21. Ndf3 {[%emt 0:01:46]} Rfc8 {[%emt 0:04:29]} 22. Ng5 {[%emt 0:10:11]} (22. Bc4 $5 {[%cal Re5d3]}) 22... g6 $2 {[%emt 0:06:34]} (22... cxd4 $1 $14 23. Rxc7 Rxc7) 23. Rce1 {[%emt 0:03:43]} (23. Nc4 $1 $18 {and the rest is easy.}) 23... cxd4 $16 {[%emt 0:01:27]} 24. Bxd4 {[%emt 0:01:39]} ({White should play} 24. Ng4 $16) 24... Bb4 $11 {[%emt 0:02:13]} 25. Ng4 $2 {[%emt 0:05:18][%mdl 8192]} Bxe1 $2 {[%emt 0:01:15]} (25... Nxg4 $19 26. Qxg4 Bxe1 27. Nxh7 Qxh7 28. Bxg6 Bf2+ $1 29. Bxf2 Qg7 30. Qxe6+ Kf8 31. Qf5+ Qf6) 26. Nh6+ $1 $16 {[%emt 0:00:49]} Kh8 $2 {[%emt 0:05:04][%mdl 8192]} (26... Kg7 $16 {is more resistant.} 27. Nxe6+ Kxh6) 27. Rxe1 $18 {[%emt 0:00:19]} (27. Ngf7+ $2 Kg7 28. Rxe1 Nb4 $17) 27... Rc1 {[%emt 0:00:37] [#]} 28. Bc4 $1 {[%emt 0:00:36]} (28. Ngf7+ $2 Kg7 29. Bc4 (29. Rxc1 $2 Rxc1+ 30. Kf2 Rh1 $19) 29... Nc3 $19) 28... Rxe1+ {[%emt 0:00:20]} 29. Qxe1 {[%emt 0:00:03]} Kg7 {[%emt 0:01:06]} 30. Ng4 {[%emt 0:00:21]} h5 $2 {[%emt 0:00:32]} (30... e5 31. Qxe5 (31. Nxe5 Kg8 $16) 31... Qxe5 32. Bxe5 h5) 31. Nxe6+ {[%emt 0:00:53]} (31. Bxd5 $142 hxg4 32. Bxb7) 31... Kh8 $2 {[%emt 0:00:30]} (31... Kf7) 32. Bxd5 $2 {[%emt 0:00:48] A strong pair of Bishops.} (32. Nxf6 Nxf6 33. Qa1) 32... hxg4 {[%emt 0:00:22]} 33. Bxb7 {[%emt 0:00:23][%mdl 64] Deflection} Qxb7 {[%emt 0:00:25]} 34. Bxf6+ {[%emt 0:00:05]} Kg8 {[%emt 0:00:02] And now ...Rc2 would win.} 35. Ng5 {[%emt 0:00:32] aiming for Qe6+.} Qd5 {[%emt 0:00:40]} 36. Qb1 $2 {[%emt 0:00:54]} (36. Qe7 $2 {gets mated.} Qd1+) (36. Ne4 $18) 36... Qc5+ $11 {[%emt 0:00:31]} 37. Kf1 {[%emt 0:00:06]} Qb5+ $2 {[%emt 0:00:43] [#]} (37... Qc1+ $11 {and Black is okay.} 38. Qxc1 Rxc1+ 39. Ke2 Rc2+ 40. Kd3 Rxa2) 38. Kf2 $2 {[%emt 0:00:42]} (38. Ke1 $1 $18 Qb4+ 39. Ke2 Qb5+ 40. Ke3 (40. Kf2 Qf5 $16) 40... Qc5+ 41. Bd4 (41. Ke2 Qc2+ 42. Qxc2 Rxc2+ 43. Ke3 Rxa2 $14)) 38... Qc5+ {[%emt 0:00:14]} 39. Ke2 {[%emt 0:00:41]} Qc2+ {[%emt 0:00:59]} 40. Qxc2 {[%emt 0:00:03]} Rxc2+ {[%emt 0:00:00]} 41. Kd3 {[%emt 0:00:42]} Rxa2 {[%emt 0:00:04]} 42. h4 {[%emt 0:00:09] Kd4 is the strong threat.} gxh3 $1 {[%emt 0:00:35]} 43. Nxh3 {[%emt 0:00:04]} Kf7 {[%emt 0:00:25]} (43... Rg2 $11 {keeps the balance.} 44. Ng5 Rxg3+ 45. Kc4 Kf8) 44. Bd4 $16 {[%emt 0:00:16]} Ke6 {[%emt 0:00:45]} 45. Nf2 {[%emt 0:00:59]} (45. g4 $16) 45... b5 $1 $14 {[%emt 0:00:59]} 46. g4 {[%emt 0:00:39]} (46. b4 $14) 46... a5 $1 $11 {[%emt 0:00:17]} 47. Ne4 {[%emt 0:01:13]} Rh2 {[%emt 0:00:53]} 48. f5+ {[%emt 0:00:31]} (48. Bb6 $5 {[%cal Rb6a5]}) 48... gxf5 {[%emt 0:00:21] The position is equal.} 49. gxf5+ {[%emt 0:00:04]} Kxf5 {[%emt 0:00:31]} 50. Nd6+ {[%emt 0:00:04]} Ke6 $1 {[%emt 0:00:03]} 51. Nxb5 {[%emt 0:00:03]} Kd5 {[%emt 0:00:24]} 52. Bc3 {[%emt 0:00:51]} Rh3+ {[%emt 0:00:25]} 53. Kc2 {[%emt 0:00:05]} Rh2+ {[%emt 0:00:25]} 54. Bd2 {[%emt 0:00:58]} Kc5 {[%emt 0:00:27]} 55. Na3 {[%emt 0:00:29]} Rxd2+ {[%emt 0:00:53]} 56. Kxd2 {[%emt 0:00:04] Kc3 would kill now.} Kb4 {[%emt 0:00:02][%csl LRa3,LRb3]} 57. Nc4 {[%emt 0:00:19]} Kxb3 {[%emt 0:00:05]} 58. Nxa5+ {[%emt 0:00:04] Black escapes into a draw.  Weighted Error Value: White=0.54/Black=0.50} 1/2-1/2

[Event "Saint Louis Norm Congress-IM 2022"]
[Site "Saint Louis"]
[Date "2022.05.19"]
[Round "1.4"]
[White "Marek, Matyas"]
[Black "Rodriguez Rivera, Pedro"]
[Result "1-0"]
[ECO "B07"]
[WhiteElo "2363"]
[BlackElo "2197"]
[Annotator "TA"]
[PlyCount "61"]
[EventDate "2022.05.20"]
[EventType "tourn"]
[EventCountry "USA"]
[SourceTitle "playchess.com"]
[Source "ChessBase"]
[SourceQuality "1"]
[TimeControl "5400+30"]

{[%evp 9,61,49,70,61,65,62,77,60,83,79,85,89,95,97,89,97,91,87,100,106,99,101,116,90,808,806,809,833,1022,1026,29988,29989,29989,29990,29991,29992,29996,388,376,307,307,312,289,276,395,327,383,379,633,617,991,966,29988,29989]} 1. e4 {[%emt 0:00:06]} d6 {[%emt 0:00:01]} 2. d4 {[%emt 0:00:07]} Nf6 {[%emt 0:00:05]} 3. Nc3 {[%emt 0:00:03]} e6 {[%emt 0:00:05]} 4. Nf3 {[%emt 0:00:04]} Be7 {[%emt 0:00:10]} 5. Bd3 {[%emt 0:00:03]} c5 {[%emt 0:03:27]} 6. dxc5 {[%emt 0:00:21] B07: Pirc Defence: Miscellaneous Systems.} dxc5 {[%emt 0:00:02]} 7. O-O {[%emt 0:00:10]} Nc6 {[%emt 0:02:25] [#]} 8. Re1 $146 {[%emt 0:00:47] White is better.} ({Predecessor:} 8. Qe2 Nd4 9. Nxd4 cxd4 10. e5 dxc3 11. exf6 Bxf6 12. Bb5+ Kf8 13. bxc3 Qc7 14. Rd1 {½-½ (25) Sorcinelli,A (2227)-Kolanek,R (2097) LSS email 2016}) 8... O-O {[%emt 0:02:08]} 9. e5 {[%emt 0:00:49]} Nd5 {[%emt 0:00:02]} 10. Qe2 {[%emt 0:00:25]} Ndb4 {[%emt 0:03:54]} 11. Be4 {[%emt 0:01:12]} Nd4 {[%emt 0:00:40]} 12. Nxd4 {[%emt 0:05:21]} cxd4 {[%emt 0:01:13]} 13. Rd1 $40 {[%emt 0:02:21][%mdl 128] White attacks with force. White is more active.} (13. Qh5 $2 g6 14. Qf3 dxc3 $19) 13... f5 {[%emt 0:05:58]} 14. exf6 $1 {[%emt 0:10:48]} Bxf6 {[%emt 0:03:31]} 15. Nb5 {[%emt 0:00:29][%cal Ob5d4]} (15. Qh5 g6 16. Qc5 Na6 $14) 15... Qb6 {[%emt 0:11:27]} 16. c3 {[%emt 0:16:40] Threatens to win with Qh5.} dxc3 $2 {[%emt 0:24:23][%mdl 8192] This move loses the game for Black.} (16... d3 $16 17. Qe3 (17. Bxd3 $2 Nxd3 18. Qxd3 Rd8 $19) (17. Qh5 g6 $11) 17... Qxb5) 17. Be3 $18 {[%emt 0:04:46]} cxb2 {[%emt 0:04:04]} 18. Rab1 {[%emt 0:00:06]} ({Not} 18. Bxb6 bxa1=R 19. Rxa1 axb6 $16) 18... Qa5 {[%emt 0:02:08]} 19. Qh5 {[%emt 0:00:15]} g6 {[%emt 0:00:40] [#]} 20. Bxg6 $1 {[%emt 0:00:33][%mdl 576] Demolition} hxg6 {[%emt 0:00:02]} 21. Qxg6+ {[%emt 0:00:07]} Kh8 {[%emt 0:00:45]} 22. Bh6 {[%emt 0:03:25]} Qxb5 {[%emt 0:03:10]} 23. Bxf8 $2 {[%emt 0:00:07]} (23. Rd8 {mates} Qf1+ 24. Kxf1 Rxd8 25. Qxf6+ Kh7 26. Qg7#) 23... Qf5 {[%emt 0:01:33]} 24. Qh6+ {[%emt 0:00:52]} Kg8 {[%emt 0:00:01] Strongly threatening ...Nd3.} 25. Bxb4 {[%emt 0:04:11][%cal Bf8b4,Bb4a3,Ba3b2][%mdl 32] Really sharp!} Bd7 {[%emt 0:00:01] [#] White must now prevent ...Ba4.} 26. Ba3 $1 {[%emt 0:02:16]} Bg7 {[%emt 0:03:09]} (26... Bg5 {is a better defense.} 27. Qh5 Be8) 27. Qd2 {[%emt 0:01:20]} Ba4 {[%emt 0:01:45]} 28. Re1 {[%emt 0:00:37]} ({Less strong is} 28. Bxb2 Bxd1 29. Rxd1 Bxb2 $18) 28... Bc2 $2 {[%emt 0:03:14]} (28... Qg6 29. Bxb2 Bc6) 29. Rxb2 {[%emt 0:00:06]} Bxb2 {[%emt 0:02:12]} 30. Bxb2 {[%emt 0:00:02] Re5 would kill now.} Qh7 {[%emt 0:07:57]} 31. Rxe6 {[%emt 0:01:10] Weighted Error Value: White=0.27 (precise) /Black=1.02} 1-0